bitfinex-derivatives/quotes_ETHF0:USTF0_20260303
["timestamp","ask_amount","ask_price","bid_price","bid_amount"]
[1772559095509,1.75541038,1971.8,1971.1,0.25909227]
[1772559096703,0.00574802,1971.8,1971.1,2.07565542]
[1772559096908,1.74966236,1972.2,1971.1,2.07565542]
[1772559097406,1.74966236,1972.2,1971.1,1.82200542]
[1772559097907,1.75602392,1972.2,1971.1,1.82200542]
[1772559099204,1.75602392,1972.2,1971.1,0.00544227]
[1772559099413,2.00954392,1972.2,1971.1,0.00544227]
[1772559100702,1.74966236,1971.9,1970.6,2.07027315]
[1772559101707,1.74966236,1971.9,1970.6,1.81656315]
[1772559101912,1.74966236,1971.9,1970.6,1.82164554]
[1772559103007,1.74966236,1971.3,1969.6,7.84893003]
[1772559103212,1.74966236,1971.1,1969.7,1.81656315]
[1772559103507,1.74966236,1970.7,1969.5,1.81656315]
[1772559103905,1.74966236,1970.7,1969.2,0.83990057]
[1772559104104,1.74966236,1970.5,1969.3,1.81656315]
[1772559104304,1.74966236,1970.2,1969.2,2.66180525]
[1772559104515,1.74966236,1970.2,1969.3,2.07043315]
[1772559104812,1.74966236,1970.2,1969.3,1.81656315]
[1772559105013,1.74966236,1970.2,1969.2,0.8452421]
[1772559105608,1.74966236,1970.2,1969.2,2.66180525]
[1772559106313,1.74966236,1969.8,1968.4,1.81656315]
[1772559106515,1.74966236,1969.8,1968.3,0.25401]
[1772559106516,1.74966236,1969.8,1968.8,1.81656315]
[1772559106710,8.14973884,1970.4,1969.0,1.81656315]
[1772559106711,1.74966236,1970.0,1969.0,1.81656315]
[1772559107310,1.74966236,1970.0,1969.0,1.82249871]
[1772559108013,1.74966236,1970.0,1969.0,0.00593556]
[1772559108314,2.00346236,1970.0,1968.5,1.64795971]
[1772559108618,1.72175313,1969.8,1968.5,1.64795971]
[1772559109316,2.05110547,1969.8,1968.5,1.64795971]
[1772559109513,1.72175313,1969.8,1968.5,1.6525409]
[1772559110117,1.72175313,1969.8,1968.7,1.64795971]
[1772559111514,1.72175313,1969.8,1968.6,0.25397]
[1772559111704,1.72175313,1969.8,1968.6,1.90192971]
[1772559113018,1.72175313,1970.1,1968.6,1.90192971]
[1772559113218,1.72175313,1970.1,1968.9,1.64795971]
[1772559114219,1.72175313,1970.6,1969.3,1.64795971]
[1772559114916,1.72175313,1970.6,1969.5,1.64795971]
[1772559117319,1.72175313,1970.6,1969.7,1.64795971]
[1772559118215,1.72175313,1970.6,1969.5,1.64795971]
[1772559119214,0.00598461,1970.7,1968.6,6.2479]
[1772559119215,1.72175313,1970.1,1969.0,1.64795971]
[1772559119413,1.72175313,1970.0,1969.0,1.64795971]
[1772559120322,1.72175313,1969.7,1968.6,1.90191971]
[1772559120524,1.72175313,1969.7,1968.6,1.64795971]
[1772559122220,1.72175313,1969.5,1968.5,0.00458119]
[1772559122426,1.72175313,1969.1,1968.0,1.64795971]
[1772559122718,1.72175313,1968.8,1967.7,1.64795971]
[1772559123521,1.72175313,1968.8,1967.7,1.65390849]
[1772559123522,1.72638031,1968.8,1967.7,1.65390849]
[1772559123719,1.72175313,1968.5,1967.7,0.00594878]
[1772559124019,1.72175313,1968.7,1967.5,1.64795971]
[1772559124221,1.72175313,1968.7,1967.7,1.64795971]
[1772559124420,1.72175313,1968.5,1967.4,1.64795971]
[1772559124820,1.72175313,1968.5,1967.4,1.65250549]
[1772559125217,1.72175313,1968.5,1967.4,0.00454578]
[1772559125522,1.72175313,1968.5,1967.5,1.64795971]
[1772559125718,1.72175313,1968.5,1967.5,1.90206971]
[1772559126824,1.72175313,1968.7,1967.5,1.90206971]
[1772559127024,1.72175313,1968.7,1967.5,1.64795971]
[1772559127219,1.72175313,1968.5,1967.5,1.64795971]
[1772559127420,1.72175313,1968.5,1967.4,0.00454578]
[1772559128425,1.72175313,1968.5,1967.4,1.65250549]
[1772559129318,1.72175313,1968.5,1967.4,0.00454578]
[1772559129521,1.72175313,1968.3,1967.4,0.00454578]
[1772559130125,1.72175313,1968.3,1967.4,1.65250549]
[1772559130727,1.72175313,1968.7,1967.6,1.64795971]
[1772559131425,1.72175313,1968.7,1967.4,1.65250549]
[1772559131728,1.72175313,1968.7,1967.7,1.64795971]
[1772559132723,0.00462718,1968.8,1968.3,1.64795971]
[1772559133025,1.72175313,1969.7,1968.5,1.64795971]
[1772559133624,1.72175313,1969.5,1968.5,1.64795971]
[1772559133820,1.72628482,1969.5,1967.9,0.25406]
[1772559134021,1.72628482,1969.5,1968.0,1.64795971]
[1772559134226,1.72175313,1969.3,1968.0,1.64795971]
[1772559134632,1.72175313,1969.1,1968.0,1.64795971]
[1772559134924,1.72175313,1968.9,1967.5,1.64795971]
[1772559135128,1.72175313,1968.7,1967.5,1.64795971]
[1772559135721,1.72175313,1968.5,1967.4,0.00454578]
[1772559136124,1.72175313,1968.5,1966.9,1.64795971]
[1772559136125,1.72175313,1968.1,1966.9,1.64795971]
[1772559136526,1.72175313,1967.9,1966.5,1.64795971]
[1772559136726,1.72175313,1967.7,1966.2,1.64795971]
[1772559137026,1.97585313,1967.6,1966.2,1.64795971]
[1772559137330,1.72764257,1967.6,1966.3,0.25427]
[1772559137531,1.72764257,1967.6,1966.4,1.64795971]
[1772559138129,1.72764257,1967.6,1966.2,1.72311358]
[1772559139531,1.65499575,1967.2,1966.2,0.00537947]
[1772559139733,1.69344763,1967.1,1966.2,0.00537947]
[1772559140127,1.69344763,1966.8,1965.3,1.66272063]
[1772559140329,1.69344763,1966.8,1965.6,1.66272063]
[1772559140622,1.69344763,1966.8,1965.9,1.66272063]
[1772559141029,1.69344763,1966.8,1965.9,1.6675759]
[1772559141224,1.69344763,1966.8,1965.9,0.00485527]
[1772559141734,6.642,1967.2,1965.9,0.00485527]
[1772559141735,1.69344763,1967.5,1965.9,1.6675759]
[1772559142026,1.69344763,1967.5,1966.0,0.25431]
[1772559142226,1.69344763,1967.5,1966.3,1.66272063]
[1772559142834,1.69344763,1967.5,1966.5,1.66272063]
[1772559143127,0.00588944,1967.6,1966.9,1.66272063]
[1772559143433,1.69344763,1968.2,1967.3,1.66272063]
[1772559144024,1.69344763,1968.4,1967.5,1.66272063]
[1772559144223,0.00532864,1968.4,1967.5,1.66788309]
[1772559144724,1.69877627,1968.4,1967.5,1.66788309]
[1772559144928,1.69877627,1968.4,1967.5,0.00516246]
[1772559145726,1.69877627,1968.4,1967.5,1.66788309]
[1772559145932,0.00532864,1968.4,1967.7,1.66272063]
[1772559146129,0.00152704,1967.1,1965.2,16.07806207]
[1772559146444,0.00152704,1965.9,1964.8,1.70157665]
[1772559146734,0.00152704,1965.9,1964.5,1.69795777]
[1772559147132,0.00817491,1965.8,1964.5,1.70306154]
[1772559147525,0.00656194,1965.9,1964.5,1.70306154]
[1772559147929,0.00656194,1965.9,1964.7,1.69798464]
[1772559148631,0.01405324,1965.9,1964.7,1.69798464]
[1772559149534,0.00656194,1965.9,1964.7,1.69798464]
[1772559149929,0.00656194,1965.9,1964.7,8.21271464]
[1772559150130,0.00656194,1965.9,1964.8,1.70915005]
[1772559150835,6.642,1966.6,1965.0,1.70666326]
[1772559151030,10.36287654,1967.2,1965.2,1.70338229]
[1772559151226,10.36287654,1967.2,1965.3,1.95778229]
[1772559152037,10.36647408,1967.2,1965.3,1.95778229]
[1772559152237,10.36647408,1967.2,1965.4,1.70340791]
[1772559152736,0.02229292,1967.1,1965.4,1.70340791]
[1772559154134,0.02229292,1967.1,1965.3,6.51279]
[1772559154135,0.02229292,1967.1,1965.6,1.68942844]
[1772559154339,0.02229292,1967.1,1965.7,0.25435]
[1772559154527,6.64659754,1967.2,1965.8,1.68942844]
[1772559154837,0.00359754,1967.2,1966.0,1.68904036]
[1772559155039,0.02491787,1967.2,1966.2,1.68904036]
[1772559156636,0.02070692,1967.0,1966.0,1.69545066]
[1772559158937,0.05368421,1966.8,1966.0,0.00638349]
[1772559159338,0.05368421,1966.8,1966.0,1.6781489]
[1772559160340,13.10536814,1967.0,1966.0,1.6781489]
[1772559160634,0.05669423,1967.2,1966.0,1.6781489]
[1772559160933,0.05470228,1967.0,1966.0,1.6781489]
[1772559161136,0.05470228,1966.8,1966.0,1.6781489]
[1772559161437,0.05469879,1966.4,1965.5,1.67072671]
[1772559162238,0.2543,1966.1,1964.9,1.67075631]
[1772559162434,0.2543,1966.1,1964.9,1.67679561]
[1772559162634,0.30804233,1965.9,1964.9,1.67679561]
[1772559163136,0.32457676,1965.5,1964.9,0.0060393]
[1772559163439,0.32834381,1965.5,1964.9,0.0060393]
[1772559163736,0.00376705,1965.5,1964.9,1.66875993]
[1772559165028,0.0681035,1965.3,1964.4,1.66272063]
[1772559165628,0.0681035,1965.1,1964.2,0.84955107]
[1772559165833,6.643,1965.2,1964.3,1.66272063]
[1772559166032,0.06715277,1965.2,1964.3,1.66691444]
[1772559166339,0.06715277,1965.4,1964.3,1.66691444]
[1772559167239,0.06608644,1965.2,1964.3,1.66691444]
[1772559168140,0.06984946,1965.5,1964.3,1.66691444]
[1772559168836,0.00376705,1965.5,1964.3,1.66691444]
[1772559169043,0.06801126,1965.3,1964.3,1.66691444]
[1772559169537,0.32240126,1965.4,1964.3,1.66691444]
[1772559169738,0.06801126,1965.3,1964.3,1.66691444]
[1772559171036,0.06686316,1965.1,1964.3,1.66691444]
[1772559171538,0.06686316,1964.9,1964.3,0.00419381]
[1772559172837,0.25444,1965.0,1964.3,1.67362585]
[1772559173343,0.33542354,1965.0,1964.3,1.67362585]
[1772559174944,0.08669744,1964.9,1964.3,0.00419381]
[1772559175641,0.08669744,1964.9,1964.2,0.22018592]
[1772559175945,0.08669744,1964.9,1964.2,1.88961796]
[1772559176645,0.08669744,1964.9,1964.2,1.89483822]
[1772559177750,6.46994903,1965.3,1964.2,1.89483822]
[1772559178046,4.22756464,1965.4,1964.2,1.89483822]
[1772559178047,0.09180241,1965.4,1964.2,1.89483822]
[1772559178644,0.34533078,1965.3,1964.2,1.89483822]
[1772559179042,0.1060682,1965.2,1964.2,1.89483822]
[1772559179546,0.1060682,1965.0,1964.2,1.89483822]
[1772559179748,0.36045125,1964.7,1963.9,1.66943204]
[1772559180049,0.10597125,1964.7,1963.9,1.66943204]
[1772559180248,0.25443,1965.1,1963.9,1.66943204]
[1772559180550,6.20364335,1965.4,1964.3,1.66943204]
[1772559180551,0.10521475,1965.4,1964.3,1.66943204]
[1772559180746,0.10521475,1965.4,1964.3,1.67452876]
[1772559180747,6.60037956,1965.4,1964.3,1.67452876]
[1772559180944,0.00376705,1965.5,1964.3,1.67452876]
[1772559181349,0.11560324,1965.5,1964.3,1.67452876]
[1772559181946,0.00376705,1965.5,1964.7,1.66943204]
[1772559182752,0.1130341,1965.5,1964.7,1.66943204]
[1772559182952,0.1130341,1965.5,1964.4,1.66943204]
[1772559183351,0.10853322,1965.3,1964.4,1.66943204]
[1772559183757,0.10853322,1965.1,1964.3,0.00509672]
[1772559184557,0.10853322,1965.1,1964.3,1.67452876]
[1772559184759,0.25441,1965.2,1964.3,1.67452876]
[1772559185354,6.49710123,1965.2,1964.3,1.67452876]
[1772559185554,10.78452928,1965.5,1964.3,1.67452876]
[1772559185858,6.50983177,1965.4,1964.3,1.67452876]
[1772559186054,0.2544,1965.3,1964.3,1.67452876]
[1772559186248,0.37144082,1965.3,1964.3,1.67452876]
[1772559186452,0.2544,1965.3,1964.3,1.67452876]
[1772559186657,6.50983177,1965.3,1964.3,1.67452876]
[1772559186855,0.11604543,1965.3,1964.3,1.67452876]
[1772559187158,4.13576223,1965.3,1964.3,1.67452876]
[1772559187353,10.77783218,1965.3,1964.3,1.67452876]
[1772559187552,6.52602452,1965.2,1964.3,1.67452876]
[1772559187855,6.5286936,1965.1,1964.3,1.67452876]
[1772559188056,0.11525655,1965.1,1964.3,1.67452876]
[1772559189261,4.27755684,1965.3,1964.3,1.67452876]
[1772559189653,6.54010659,1965.2,1964.3,1.67452876]
[1772559189849,4.13576223,1965.4,1964.3,1.67452876]
[1772559190351,10.68205809,1965.3,1964.3,1.67452876]
[1772559190554,6.54629586,1965.2,1964.3,1.67452876]
[1772559190752,4.51314343,1965.1,1964.3,1.67452876]
[1772559190953,4.13576223,1965.4,1964.3,1.67452876]
[1772559191153,4.66358618,1965.3,1964.3,1.67452876]
[1772559191451,4.13576223,1965.3,1964.3,1.67452876]
[1772559192162,0.00376705,1965.5,1964.7,1.66943204]
[1772559192362,6.20364335,1966.0,1964.9,1.66943204]
[1772559192660,0.52894972,1965.9,1965.2,0.25441]
[1772559192863,6.20364335,1966.2,1965.3,1.66943204]
[1772559193056,7.83022717,1966.3,1965.3,1.66943204]
[1772559193357,1.62658382,1966.2,1965.3,1.66943204]
[1772559193562,1.88090382,1965.9,1964.8,1.66943204]
[1772559193960,1.62658382,1965.6,1964.8,1.66943204]
[1772559194457,1.62658382,1965.6,1964.4,1.66943204]
[1772559195467,1.62658382,1965.2,1964.3,0.00509672]
[1772559195663,1.62658382,1965.1,1964.3,1.67452876]
[1772559195961,1.62658382,1964.9,1964.3,0.00509672]
[1772559196165,1.63247763,1964.9,1964.3,0.00509672]
[1772559196660,1.63247763,1964.9,1964.1,1.66943204]
[1772559196865,1.63247763,1964.9,1963.1,6.89868]
[1772559196866,1.62658382,1964.7,1963.1,6.89868]
[1772559197069,1.62658382,1964.7,1963.6,1.66943204]
[1772559197661,1.63247763,1964.9,1963.8,1.66943204]
[1772559198455,1.68456364,1964.9,1963.8,1.66943204]
[1772559199362,0.00589381,1964.9,1963.8,1.66943204]
[1772559199559,6.28212981,1965.4,1964.2,1.65870978]
[1772559199767,7.96906597,1965.5,1964.4,1.65870978]
[1772559200359,1.68693616,1965.5,1964.4,1.65870978]
[1772559200565,1.69167766,1965.5,1964.4,1.65870978]
[1772559201265,0.0047415,1965.5,1964.6,1.65870978]
[1772559201566,1.69167766,1965.5,1964.6,1.65870978]
[1772559202469,1.94605766,1965.5,1964.1,1.65870978]
[1772559202666,1.68693616,1965.2,1964.1,1.65870978]
[1772559202966,1.68693616,1965.0,1964.1,1.65870978]
[1772559203358,6.42177765,1964.9,1964.1,1.65870978]
[1772559203563,8.10871381,1964.9,1964.1,1.65870978]
[1772559203764,1.68693616,1964.9,1964.1,1.65870978]
[1772559204865,1.68693616,1964.7,1963.7,1.65870978]
[1772559205165,6.41732678,1964.8,1963.7,1.65870978]
[1772559205166,1.68693616,1964.5,1963.7,1.65870978]
[1772559205358,1.68693616,1964.5,1963.1,6.645]
[1772559205359,1.68693616,1964.1,1963.1,1.65870978]
[1772559205562,0.25454,1964.2,1963.1,1.65870978]
[1772559205563,1.68693616,1963.9,1963.1,1.65870978]
[1772559205965,1.68693616,1963.7,1962.5,1.65870978]
[1772559206366,1.68693616,1963.9,1962.5,1.65870978]
[1772559206563,0.00450935,1963.7,1962.5,1.66515181]
[1772559206963,1.69144551,1963.7,1962.5,1.66515181]
[1772559207769,0.00450935,1963.7,1962.7,1.65870978]
[1772559207967,0.00450935,1963.7,1962.9,1.65870978]
[1772559208370,1.69144551,1963.7,1962.9,1.65870978]
[1772559209770,1.69144551,1963.7,1962.7,1.65870978]
[1772559210069,1.69144551,1963.7,1962.8,0.25473]
[1772559210070,0.00450935,1963.7,1962.8,0.25473]
[1772559210269,0.00450935,1963.7,1962.9,1.65870978]
[1772559210473,1.69144551,1963.7,1962.9,1.65870978]
[1772559210673,1.69144551,1963.7,1962.5,1.66515181]
[1772559210967,1.68693616,1963.5,1962.3,1.65870978]
[1772559211368,1.68693616,1963.2,1962.3,1.65870978]
[1772559211574,1.68693616,1963.2,1961.8,1.44344499]
[1772559211975,1.68693616,1963.2,1961.9,1.70098903]
[1772559212176,1.68693616,1963.2,1961.9,1.44614903]
[1772559212776,6.59116983,1963.5,1961.8,1.45011171]
[1772559212777,1.68693616,1963.0,1961.8,1.45011171]
[1772559213573,1.68693616,1963.4,1961.9,1.47077042]
[1772559215276,1.68693616,1963.4,1962.0,1.71777031]
[1772559216571,1.68693616,1963.2,1962.0,1.71777031]
[1772559216773,1.68693616,1963.5,1962.3,1.46162698]
[1772559216973,1.68693616,1963.5,1962.3,1.71640698]
[1772559217369,1.69144551,1963.7,1962.6,1.46435796]
[1772559217574,1.69144551,1963.7,1962.8,1.46435796]
[1772559217771,0.00450935,1963.7,1962.8,1.46435796]
[1772559218775,1.68693616,1964.1,1962.8,1.46435796]
[1772559218980,1.68693616,1963.8,1962.8,1.46435796]
[1772559219477,1.68693616,1963.5,1962.4,1.44268513]
[1772559219674,1.68693616,1963.2,1962.4,1.44268513]
[1772559220882,0.0056318,1963.5,1962.8,1.41916801]
[1772559221084,1.68693616,1964.3,1963.0,1.41916801]
[1772559221282,1.68693616,1964.3,1962.7,6.26664]
[1772559221283,1.68693616,1964.3,1963.2,1.41916801]
[1772559221483,1.68693616,1964.3,1963.1,0.25469]
[1772559221781,3.73901716,1964.6,1962.9,1.41916801]
[1772559221782,1.68693616,1964.1,1962.9,1.41916801]
[1772559222178,1.6918175,1964.1,1962.9,1.42543182]
[1772559222986,1.68693616,1963.9,1962.9,1.42543182]
[1772559223183,1.68693616,1963.9,1962.9,0.00626381]
[1772559223384,1.68693616,1963.9,1963.0,1.41471758]
[1772559224381,1.68693616,1963.9,1962.6,0.25474]
[1772559224382,1.68693616,1963.7,1962.3,1.41324311]
[1772559225382,1.68693616,1963.7,1962.3,1.41680224]
[1772559225591,1.68693616,1963.3,1962.3,0.00355913]
[1772559226090,1.68693616,1963.1,1962.3,0.00355913]
[1772559226583,1.68693616,1962.7,1961.2,1.35473641]
[1772559226783,1.68693616,1962.6,1961.2,1.35473641]
[1772559226982,1.68693616,1962.4,1961.2,1.35473641]
[1772559227180,1.68693616,1962.4,1961.4,1.36781043]
[1772559227583,1.6916507,1962.4,1961.4,1.37213987]
[1772559228690,1.6916507,1962.4,1961.4,0.00432944]
[1772559229788,1.6916507,1962.4,1961.4,1.4035212]
[1772559229984,0.00471454,1962.4,1961.6,1.39780804]
[1772559230485,1.64781697,1962.4,1961.6,1.39780804]
[1772559230684,1.64781697,1962.4,1961.4,1.40213748]
[1772559231390,1.90259697,1962.4,1961.4,0.00432944]
[1772559231590,1.64781697,1962.4,1961.4,1.38829104]
[1772559231791,1.64781697,1962.4,1961.4,1.64319104]
[1772559232687,1.64310243,1962.2,1961.4,0.00432944]
[1772559232886,1.64310243,1962.2,1961.4,1.3182956]
[1772559234292,1.64310243,1962.2,1961.4,0.00432944]
[1772559234885,1.64310243,1962.0,1960.7,1.30776976]
[1772559235286,0.00471454,1962.4,1961.3,1.31059056]
[1772559235486,0.00471454,1962.4,1961.7,1.31059056]
[1772559235885,1.64781697,1962.4,1961.7,1.31615543]
[1772559236285,1.64781697,1962.4,1961.2,1.30935552]
[1772559236692,1.64781697,1962.4,1961.4,1.30935552]
[1772559237094,0.00471454,1962.4,1961.6,1.31408829]
[1772559237293,1.64310243,1962.7,1961.6,1.31408829]
[1772559237694,1.64310243,1962.7,1961.8,1.31408829]
[1772559238286,1.64817599,1962.7,1961.8,0.00573001]
[1772559240590,0.00507356,1962.7,1962.0,1.2311318]
[1772559240892,1.64310243,1963.4,1962.1,1.4859518]
[1772559241294,1.64310243,1963.4,1962.3,1.48175026]
[1772559241797,1.64723285,1963.4,1962.3,1.48175026]
[1772559242196,1.64723285,1963.4,1962.3,1.22696026]
[1772559242599,1.64723285,1963.4,1961.8,0.26058001]
[1772559242600,1.64723285,1963.4,1961.9,1.22582561]
[1772559242794,1.64310243,1963.2,1962.0,7.87582561]
[1772559243097,1.64310243,1963.2,1962.1,1.22289067]
[1772559243798,1.64310243,1963.2,1962.3,1.22289067]
[1772559244592,1.64310243,1963.2,1962.2,1.47657617]
[1772559244795,0.00413042,1963.4,1962.5,1.21834459]
[1772559245194,0.00413042,1963.4,1962.7,1.21697792]
[1772559245795,0.00413042,1963.4,1962.6,1.47172792]
[1772559245996,1.64310243,1962.9,1961.8,0.00573001]
[1772559246192,1.64310243,1962.6,1961.8,0.00573001]
[1772559248389,1.64310243,1962.3,1961.0,7.8540077]
[1772559248699,1.64310243,1962.3,1961.0,1.2050077]
[1772559248898,1.64310243,1962.3,1961.1,1.2050077]
[1772559249100,1.89789243,1962.3,1961.1,1.2050077]
[1772559249299,1.64310243,1962.3,1961.1,1.2050077]
[1772559249494,1.64310243,1962.3,1961.3,1.17218624]
[1772559250400,1.64310243,1962.3,1961.1,0.00466325]
[1772559250401,1.64310243,1962.3,1961.1,1.1758293]
[1772559250698,1.64310243,1962.3,1961.1,1.4307693]
[1772559251700,1.6993365,1961.1,1958.9,6.2788]
[1772559251999,1.6993365,1961.1,1958.8,6.27913]
[1772559252000,1.69921021,1960.5,1958.8,6.27913]
[1772559252191,13.51981195,1961.0,1958.8,6.27913]
[1772559252192,1.69921021,1960.3,1958.8,6.27913]
[1772559252393,1.69921021,1960.3,1958.8,6.65]
[1772559252603,1.70583131,1960.3,1959.2,0.86315964]
[1772559253002,1.70759844,1960.1,1959.2,0.86315964]
[1772559254500,1.64310243,1961.3,1960.3,0.53690348]
[1772559254706,1.64310243,1961.3,1960.4,0.53690348]
[1772559255302,1.64853463,1961.3,1960.4,0.53690348]
[1772559256406,1.64853463,1961.3,1960.0,7.17936099]
[1772559256601,1.64853463,1961.3,1960.1,0.52736099]
[1772559257208,1.64853463,1961.3,1960.0,6.652]
[1772559257608,1.64853463,1961.3,1960.1,0.53986955]
[1772559258006,1.64853463,1961.3,1959.8,0.53954928]
[1772559258206,1.64853463,1961.3,1959.9,7.19154928]
[1772559258908,1.64853463,1961.3,1959.5,6.27691]
[1772559258909,1.64853463,1961.3,1959.7,0.54289731]
[1772559259203,1.64853463,1961.3,1959.9,0.54289731]
[1772559259404,1.64853463,1961.3,1959.6,0.54289731]
[1772559259604,1.64853463,1961.3,1959.7,0.54289731]
[1772559260004,1.64853463,1961.3,1959.6,6.652]
[1772559260005,1.64853463,1961.3,1959.9,0.5447065]
[1772559260901,1.64853463,1961.3,1959.9,7.1967065]
[1772559261208,1.64853463,1961.3,1959.9,0.5447065]
[1772559262004,0.0054322,1961.3,1960.3,0.55116989]
[1772559262206,10.40284823,1962.3,1960.8,6.27275]
[1772559262207,1.5559796,1961.6,1960.8,6.27275]
[1772559262410,1.5559796,1961.9,1960.8,0.25498]
[1772559262812,1.5559796,1961.9,1960.8,0.79825746]
[1772559263207,1.56157848,1961.9,1961.0,0.54335073]
[1772559263406,0.00559888,1961.9,1961.0,0.54335073]
[1772559263609,1.56157848,1961.9,1960.9,6.653]
[1772559263809,1.56157848,1961.9,1960.8,0.25950699]
[1772559264010,1.56157848,1961.9,1960.9,6.653]
[1772559264205,1.56157848,1961.9,1960.9,7.19641961]
[1772559264409,1.56157848,1961.9,1961.0,0.54341961]
[1772559264713,1.56157848,1961.9,1961.1,0.54341961]
[1772559264912,0.00559888,1961.9,1961.1,0.54341961]
[1772559265113,1.56157848,1961.9,1960.9,7.22573193]
[1772559266415,1.56157848,1961.9,1960.9,7.22473193]
[1772559267016,1.56157848,1961.9,1960.9,0.57273193]
[1772559267211,1.56157848,1961.9,1960.8,0.00452699]
[1772559267411,5.31342671,1961.9,1960.8,0.00452699]
[1772559267608,1.5559796,1961.8,1960.4,0.57375895]
[1772559268712,1.5559796,1961.8,1960.5,6.52873]
[1772559268910,1.5559796,1961.8,1960.5,0.25502]
[1772559269306,1.5559796,1961.8,1960.5,6.90702]
[1772559270213,1.5559796,1961.8,1960.6,0.57671837]
[1772559271206,1.5559796,1961.8,1960.7,0.255]
[1772559271407,1.5559796,1961.8,1960.8,0.58170016]
[1772559272214,1.5559796,1961.8,1960.9,0.83671875]
[1772559272415,1.5559796,1961.8,1961.0,0.58174875]
[1772559272813,1.5559796,1961.8,1960.9,0.25497]
[1772559273615,0.00559888,1961.9,1961.1,0.83491471]
[1772559273918,1.56157848,1961.9,1961.3,0.25492]
[1772559274608,1.56157848,1961.9,1960.8,6.90698]
[1772559274808,1.56157848,1961.9,1961.2,0.25493]
[1772559275015,0.00559888,1961.9,1961.2,0.82405988]
[1772559275215,0.00559888,1961.9,1961.4,0.82410242]
[1772559275418,1.5559796,1962.6,1961.4,0.82410242]
[1772559275619,1.5559796,1962.4,1961.6,0.25488]
[1772559276416,1.56152532,1962.4,1961.6,0.25488]
[1772559276616,1.56152532,1962.4,1961.8,0.25486]
[1772559276918,0.00554572,1962.4,1961.8,0.81770821]
[1772559277323,1.56152532,1962.4,1961.8,0.25990357]
[1772559277613,1.56152532,1962.4,1961.4,6.652]
[1772559277811,1.56152532,1962.4,1961.4,7.21489525]
[1772559278014,1.5559796,1962.7,1962.0,0.56296773]
[1772559278216,1.5559796,1963.3,1962.1,0.89439681]
[1772559278412,1.5559796,1963.1,1962.1,7.54639681]
[1772559278617,1.5559796,1963.1,1962.1,6.90682]
[1772559278815,1.5559796,1963.4,1962.4,0.6072295]
[1772559279221,1.56027022,1963.4,1962.4,0.6115084]
[1772559279521,0.00429062,1963.4,1962.7,0.86208445]
[1772559279716,1.56027022,1963.4,1962.7,0.25474]
[1772559280720,1.56027022,1963.4,1962.7,0.86217788]
[1772559281718,1.56027022,1963.4,1962.7,0.25474]
[1772559281920,1.56027022,1963.4,1962.4,6.6552789]
[1772559282421,1.56027022,1963.4,1962.5,0.25476]
[1772559282722,1.56027022,1963.4,1962.5,0.8563953]
[1772559283119,1.56027022,1963.4,1962.5,0.25476]
[1772559283617,1.56027022,1963.4,1962.5,0.83992282]
[1772559283822,1.56027022,1963.4,1962.7,0.25474]
[1772559285317,1.56027022,1963.4,1962.7,0.84049639]
[1772559285514,0.00429062,1963.4,1962.8,0.58575639]
[1772559285714,1.56027022,1963.4,1962.8,6.651]
[1772559285917,1.56027022,1963.4,1962.7,0.25474]
[1772559286128,0.00429062,1963.4,1962.7,6.90574]
[1772559286314,1.5559796,1964.0,1962.8,0.83625506]
[1772559286518,1.5559796,1964.0,1962.8,0.25472]
[1772559287222,1.56131137,1964.0,1962.8,0.25472]
[1772559287422,1.56131137,1964.0,1962.8,0.83043918]
[1772559287622,1.56131137,1964.0,1963.0,0.83041918]
[1772559287923,1.56131137,1964.0,1962.5,0.25476]
[1772559288320,1.63520519,1963.8,1962.5,0.82900517]
[1772559288520,1.63520519,1963.8,1962.7,0.82898517]
[1772559288922,1.63520519,1963.8,1962.8,0.59864714]
[1772559290123,1.63520519,1963.8,1962.9,0.25471]
[1772559290624,1.63520519,1963.8,1963.1,0.85358165]
[1772559290834,1.63520519,1963.8,1963.1,0.25469]
[1772559291033,1.64053696,1964.0,1963.1,0.25469]
[1772559291737,1.64053696,1964.0,1962.8,6.651]
[1772559291932,1.64053696,1964.0,1962.8,7.24876012]
[1772559292528,1.64053696,1964.0,1962.9,0.85247012]
[1772559292935,1.64053696,1964.0,1963.1,0.25469]
[1772559293234,1.64053696,1964.0,1963.3,0.25466]
[1772559294035,1.64053696,1964.0,1963.5,0.25463]
[1772559294935,1.64053696,1964.0,1963.5,0.86395528]
[1772559294936,0.00533177,1964.0,1963.5,0.86395528]
[1772559295132,1.63520519,1964.4,1963.7,0.86403945]
[1772559295437,1.63520519,1964.4,1963.7,0.25461]
[1772559296226,1.64001166,1964.4,1963.7,0.86412942]
[1772559296529,1.64001166,1964.4,1963.3,6.26471]
[1772559296530,1.64001166,1964.4,1963.3,0.60951942]
[1772559296733,1.64001166,1964.4,1963.2,7.51518942]
[1772559297135,1.64001166,1964.4,1963.2,0.86418942]
[1772559298733,1.64001166,1964.4,1963.4,0.86270062]
[1772559298929,1.64001166,1964.4,1963.4,0.25465]
[1772559300033,1.64001166,1964.4,1963.0,7.27783685]
[1772559300235,1.64001166,1964.4,1963.1,0.88152685]
[1772559300833,1.89453166,1964.4,1962.7,0.63187168]
[1772559301031,1.63520519,1964.1,1962.6,6.90574]
[1772559301232,1.63520519,1963.9,1962.6,0.63197134]
[1772559301437,1.63520519,1963.3,1962.4,0.0042789]
[1772559302137,1.63520519,1963.3,1962.4,0.89110658]
[1772559302339,1.63520519,1963.3,1961.9,0.25483]
[1772559302541,1.63520519,1963.1,1961.9,0.25483]
[1772559303035,1.63520519,1963.1,1961.7,0.63633658]
[1772559303442,1.63520519,1963.1,1961.7,0.00432495]
[1772559303742,1.63520519,1962.9,1961.7,0.00432495]
[1772559303938,1.63999272,1962.9,1961.7,0.00432495]
[1772559304142,1.63999272,1962.9,1961.9,0.65227278]
[1772559304640,1.63999272,1962.9,1962.1,0.65227278]
[1772559304937,0.00478753,1962.9,1962.3,0.67785481]
[1772559305443,1.63999272,1962.9,1962.2,0.2548]
[1772559306247,1.63999272,1962.9,1961.9,0.67795894]
[1772559306440,1.63999272,1962.9,1962.0,0.93287207]
[1772559306841,1.63999272,1962.9,1962.0,0.25483]
[1772559307046,1.63999272,1962.9,1961.7,0.00432495]
[1772559307245,1.63520519,1962.7,1961.7,0.68982888]
[1772559307647,1.63520519,1962.7,1961.7,0.00432495]
[1772559307948,1.63520519,1962.5,1961.7,0.00432495]
[1772559309644,6.44116458,1962.4,1961.0,2.10408375]
[1772559309849,1.63520519,1962.3,1961.0,2.10408375]
[1772559310440,1.63520519,1962.3,1961.0,1.37044006]
[1772559310639,1.63520519,1962.3,1961.0,1.3757682]
[1772559311247,1.63520519,1962.3,1961.0,2.13663935]
[1772559311449,1.63520519,1962.1,1961.0,0.00532814]
[1772559312042,1.63520519,1961.9,1961.0,0.00532814]
[1772559312648,1.63520519,1961.9,1961.2,0.76095793]
[1772559312950,1.63520519,1961.9,1961.1,0.25495]
[1772559313150,1.63520519,1961.9,1961.0,0.00532814]
[1772559313542,1.63520519,1961.9,1961.1,0.77706693]
[1772559314046,1.63520519,1961.9,1961.0,0.26027814]